[Event "Lliga Catalana DH 2023"]
[Site "Catalonia"]
[Date "2023.02.11"]
[Round "4.1"]
[White "Demidov, Mikhail"]
[Black "Magem Badals, Jordi"]
[Result "1-0"]
[ECO "A30"]
[WhiteElo "2575"]
[BlackElo "2510"]
[Annotator "TA"]
[PlyCount "87"]
[EventDate "2023.01.24"]
[EventType "team-tourn"]
[EventCountry "ESP"]
[SourceTitle "playchess.com"]
[Source "ChessBase"]
[SourceQuality "1"]
[TimeControl "40/5400+30:1800+30"]

{[%evp 17,87,0,12,0,0,-3,0,0,0,0,4,12,18,18,40,35,37,21,41,10,10,10,25,31,26,25,26,20,30,21,65,6,28,0,56,51,64,71,71,71,71,24,189,199,185,196,184,192,247,231,308,309,304,291,279,227,209,211,228,194,333,322,386,385,408,408,391,391,369,342,383,374]} 1. c4 {[%emt 0:01:27]} c5 {[%emt 0:00:24]} 2. Nf3 {[%emt 0:00:24]} Nf6 {[%emt 0:00:13]} 3. e3 {[%emt 0:02:42]} g6 {[%emt 0:03:13]} 4. b3 {[%emt 0:01:11]} Bg7 {[%emt 0:00:45]} 5. Bb2 {[%emt 0:00:07]} O-O {[%emt 0:01:24]} 6. Be2 {[%emt 0:00:23]} b6 {[%emt 0:10:27]} 7. d4 {[%emt 0:03:47]} cxd4 {[%emt 0:03:06]} 8. Nxd4 {[%emt 0:02:33]} d5 {[%emt 0:06:04]} 9. O-O {[%emt 0:10:53]} Bb7 {[%emt 0:13:57]} 10. cxd5 {[%emt 0:05:22] A30: Symmetrical English: Double Fianchetto and Hedgehog.} Nxd5 {[%emt 0:03:00] [#]} 11. Qd2 $146 {[%emt 0:10:14]} ({Predecessor:} 11. Nc3 Nxc3 12. Bxc3 Nd7 13. Bf3 Qc8 14. Rc1 Nc5 15. Bb4 Rd8 16. Bxc5 bxc5 17. Bxb7 Qxb7 {½-½ Kryakvin,D (2588)-Sjugirov,S (2663) RUS-ch rapid GP final 2018 (3)}) 11... e5 {[%emt 0:16:06]} 12. Nf3 {[%emt 0:02:32] The position is equal.} e4 {[%emt 0:02:05]} 13. Bxg7 {[%emt 0:16:24]} Kxg7 {[%emt 0:05:50]} 14. Nd4 {[%emt 0:01:21]} Nd7 {[%emt 0:03:15]} 15. Nc3 {[%emt 0:00:54]} N7f6 {[%emt 0:03:56]} 16. Rac1 {[%emt 0:02:17]} Rc8 {[%emt 0:01:34]} 17. h3 {[%emt 0:02:16]} Qe7 {[%emt 0:03:12]} 18. Bc4 {[%emt 0:03:48]} Nxc3 {[%emt 0:03:41]} 19. Rxc3 {[%emt 0:00:35]} h5 {[%emt 0:00:12]} 20. Rfc1 {[%emt 0:00:59]} a6 {[%emt 0:05:53]} 21. a4 {[%emt 0:07:41]} Rc7 {[%emt 0:05:39]} 22. Qb2 {[%emt 0:10:32]} Rfc8 {[%emt 0:02:34]} 23. b4 {[%emt 0:02:07]} Kg8 {[%emt 0:02:29]} 24. Qb3 {[%emt 0:02:53]} (24. b5 $14 axb5 25. Bxb5 (25. axb5 Qd6 $11)) 24... Kg7 {[%emt 0:00:38]} 25. Qb2 {[%emt 0:00:34]} Kg8 {[%emt 0:00:07]} 26. b5 {[%emt 0:02:04]} axb5 {[%emt 0:01:34]} 27. Nxb5 {[%emt 0:02:38]} Rc5 {[%emt 0:00:23]} 28. Na7 $36 {[%emt 0:02:24][%mdl 2112] Discovered Attack. Keeping Black busy.} R8c7 {[%emt 0:00:01] [#]} 29. Qxb6 {[%emt 0:02:09] White is more active.} (29. a5 $1 $16 {[%cal Ra5b6]} bxa5 30. Bxf7+ Kxf7 31. Rxc5 Rxc5 32. Rxc5 Qxc5 33. Qxb7+ Kf8 34. Nb5 (34. Nc6 h4 $14)) 29... Bd5 $2 {[%emt 0:00:27] A mistake that costs the game.} (29... Nd5 $1 $11 {and Black stays safe.} 30. Bxd5 {[%mdl 64] Pin} Rxc3 31. Rxc3 (31. Qxg6+ Kf8 $14) 31... Rxc3 32. Qxg6+ (32. Qxb7 Rc1+ 33. Kh2 Qe5+ 34. g3 Qf5 $17) (32. Bxb7 $2 Rc1+ 33. Kh2 Qe5+ 34. g3 Rc2 $19) 32... Kf8 33. Qh6+ (33. Qxh5 $2 Rc1+ 34. Kh2 Qd6+ 35. g3 Qxd5 $19) 33... Kg8 34. Bxb7 (34. Qxh5 $2 Rc1+ 35. Kh2 Qd6+ 36. g3 Qxd5 $19) (34. Qg6+ Kf8 $14) 34... Rc1+ 35. Kh2 Qe5+ 36. Qf4 Qxf4+ 37. exf4 Rc7) 30. Nb5 $18 {[%emt 0:00:29]} R7c6 {[%emt 0:00:57]} 31. Qa7 {[%emt 0:01:34]} Qxa7 {[%emt 0:02:21]} 32. Nxa7 {[%emt 0:00:05]} Rc7 {[%emt 0:00:04]} (32... Rd6 $142 33. Nb5 Rd8 34. Bxd5 Rcxd5) 33. Nb5 {[%emt 0:00:05]} Rb7 {[%emt 0:00:10]} 34. Bf1 {[%emt 0:00:47]} Rxc3 {[%emt 0:00:01]} 35. Rxc3 {[%emt 0:00:11]} ({But not} 35. Nxc3 $6 Ra7 36. Nxd5 Nxd5 $18) 35... Rb8 {[%emt 0:00:10]} 36. a5 {[%emt 0:01:10] a6 would be deadly.} Ra8 {[%emt 0:00:01]} 37. Ra3 {[%emt 0:00:09]} Bb7 {[%emt 0:00:06]} 38. Bc4 {[%emt 0:00:32]} Kf8 {[%emt 0:00:20] [#]} (38... Ne8 $142 39. Nd4 Nc7) 39. Bxf7 $1 {[%emt 0:00:50][%mdl 576] Decoy} Ba6 {[%emt 0:00:31]} (39... Kxf7 40. Nd6+) 40. Bc4 {[%emt 0:00:41] Nc7 is the strong threat.} ({And not} 40. Bxg6 Bxb5 41. f3 Ke7 $15) 40... Rc8 {[%emt 0:00:28] Dodges Nc7} 41. Nd6 {[%emt 0:30:15][%csl LRa6,LRc8][%mdl 64] Discovered Attack} Rc6 {[%emt 0:30:03]} 42. Bxa6 {[%emt 0:00:13]} Rxa6 {[%emt 0:00:01]} 43. Nc4 {[%emt 0:00:27]} Nd5 {[%emt 0:00:42]} 44. Nd2 {[%emt 0:00:21] Weighted Error Value: White=0.11 (very precise) /Black=0.24 (precise)} 1-0

[Event "Lliga Catalana DH 2023"]
[Site "Catalonia"]
[Date "2023.02.11"]
[Round "4.2"]
[White "Zwardon, Vojtech"]
[Black "Peralta, Fernando"]
[Result "0-1"]
[ECO "A18"]
[WhiteElo "2489"]
[BlackElo "2596"]
[Annotator "TA"]
[PlyCount "74"]
[EventDate "2023.01.24"]
[EventType "team-tourn"]
[EventCountry "ESP"]
[SourceTitle "playchess.com"]
[Source "ChessBase"]
[SourceQuality "1"]
[TimeControl "40/5400+30:1800+30"]

{[%evp 16,74,10,10,6,-24,-31,-35,-17,-12,-25,-18,-8,-10,-13,-8,-14,-60,-65,-56,-53,-112,-117,-285,-282,-283,-270,-352,-368,-689,-696,-858,-855,-839,-829,-808,-775,-765,-752,-808,-804,-695,-407,-397,-383,-820,-816,-823,-820,-792,-784,-1243,-1206,-1381,-909,-1416,-1416,-1455,-1399,-1265,-1247]} 1. c4 Nf6 2. Nc3 e6 3. e4 d5 4. e5 d4 5. exf6 dxc3 6. bxc3 Qxf6 7. Nf3 b6 8. d4 Bb7 9. Bd3 h6 $1 {Against Bg5 9...h6 is better than 9...Bxf3. A18: English Opening: Flohr-Mikenas System (1 c4 Nf6 2 Nc3 e6 3 e4).} (9... Bxf3 {simplifies} 10. Qxf3 Qxf3 11. gxf3 f5) 10. Ne5 {[%cal Oc4c5]} (10. O-O {simplifies} Bxf3 11. gxf3 Nd7 12. Qe2) 10... Bd6 11. Qa4+ Ke7 {Black is slightly better.} 12. Ng4 Qh4 13. Ne3 Nd7 {[#]} 14. Qc2 $146 ({Predecessor:} 14. c5 Nxc5 15. Qc2 Nxd3+ 16. Qxd3 Qe4 17. Qxe4 Bxe4 18. Nc4 Bxg2 19. Rg1 Be4 20. Nxd6 cxd6 {0-1 Fischer,R (2130)-Moe,W Chicago op 1997 (2)}) 14... Rhe8 {[%cal Oe7f8]} (14... Bxh2 $2 15. Nf1 $18) 15. g3 Qh3 16. Be4 (16. Bf1 $1 $11 Qh5 17. Be2) 16... Bxe4 $15 17. Qxe4 Kf8 18. a4 (18. Qg2 $15 Qxg2 19. Nxg2) 18... e5 $17 19. Qh7 $2 {Loses the game.} (19. d5 $17 {is a better defense.}) 19... exd4 $19 20. cxd4 {[#]} Nf6 $1 {[%cal Bd7f6,Bf6g8,Bg8e7][%mdl 32] Active counter play!} (20... Bb4+ 21. Bd2 Bxd2+ 22. Kxd2 $15) 21. Qh8+ Ng8 22. Bd2 $2 (22. Qh7 Qg2 23. Rf1) 22... f5 23. c5 bxc5 24. dxc5 Be5 25. O-O-O Kf7 26. Qh7 Ne7 {aiming for ...Rh8.} 27. Nc4 Bf6 {[#] ...Qg4 is the strong threat.} 28. Rhe1 Qg4 (28... Qxh2 $2 {is the wrong capture.} 29. Ne5+ Bxe5 30. Rxe5 Qxf2 31. Bxh6 (31. Rde1 $2 Qd4 $19) 31... Qxg3 32. Re3 $19) 29. Bf4 {Rd7 would be deadly.} Rh8 30. Qxh8 ({Inferior is} 30. Rxe7+ Kxe7 31. Re1+ Kd7 $19) (30. f3 Qxf4+ 31. gxf4 Rxh7 32. Rd7) 30... Rxh8 {Black is clearly winning.} 31. Rd7 Re8 32. Rxc7 Kf8 {And now ...Qf3 would win.} 33. Nd6 Rb8 {Hoping for ...g5.} 34. Nb5 a6 {[%cal Ba7a6,Ba6b5][%mdl 32]} 35. Rd7 axb5 36. Bxb8 Qc4+ 37. Kd1 Qb3+ {An entertaining game by Peralta.   Weighted Error Value: White=0.93/Black=0.37} 0-1

[Event "Lliga Catalana DH 2023"]
[Site "Catalonia"]
[Date "2023.02.11"]
[Round "4.2"]
[White "Diaz Camallonga, Carles"]
[Black "Gutenev, Alexander"]
[Result "1-0"]
[ECO "D77"]
[WhiteElo "2472"]
[BlackElo "2455"]
[Annotator "TA"]
[PlyCount "141"]
[EventDate "2023.01.24"]
[EventType "team-tourn"]
[EventCountry "ESP"]
[SourceTitle "playchess.com"]
[Source "ChessBase"]
[SourceQuality "1"]
[TimeControl "40/5400+30:1800+30"]

{[%evp 15,141,37,41,21,51,41,64,70,91,67,71,74,65,69,88,81,113,103,104,95,107,44,87,66,66,68,69,71,72,73,73,64,56,74,121,101,149,152,162,160,164,156,164,164,279,279,278,272,303,289,387,297,426,389,614,590,657,530,765,754,665,530,530,523,516,508,508,471,372,292,291,0,300,185,185,184,184,150,150,150,150,150,149,149,150,150,150,0,125,125,125,125,125,125,125,125,125,119,184,184,184,184,184,184,184,184,184,184,184,184,184,184,184,184,29974,29975,29975,29976,29977,29977,29978,29979,29980,29981,29984,29983,29983,183]} 1. d4 {[%emt 0:00:02]} Nf6 {[%emt 0:00:19]} 2. Nf3 {[%emt 0:00:07]} g6 {[%emt 0:00:18]} 3. g3 {[%emt 0:00:14]} Bg7 {[%emt 0:00:23]} 4. Bg2 {[%emt 0:00:06]} O-O {[%emt 0:00:23]} 5. O-O {[%emt 0:00:07]} d5 {[%emt 0:00:13]} 6. c4 {[%emt 0:00:09]} dxc4 {[%emt 0:03:27]} 7. Na3 {[%emt 0:00:05]} c3 {[%emt 0:00:15] 7...c5 injects fresh life into this line.} 8. bxc3 {[%emt 0:00:05]} c5 {[%emt 0:00:04]} 9. Re1 {[%emt 0:00:10] D77: Fianchetto Grünfeld: 6 0-0: Replies other than 6...c6.} Bf5 {[%emt 0:13:42]} 10. Bb2 {[%emt 0:25:15]} (10. Ne5 {with more complications.} Ne4 11. Bb2 h5 12. h3) 10... Nc6 {[%emt 0:18:47]} 11. d5 {[%emt 0:18:24] White is slightly better.} Na5 {[%emt 0:03:44][%cal Od8b6]} 12. c4 {[%emt 0:00:56]} Be4 {[%emt 0:18:14]} 13. Bh3 {[%emt 0:10:17] Wards off e6} Bxf3 {[%emt 0:07:50]} 14. exf3 {[%emt 0:00:05] [#]} b5 $146 {[%emt 0:00:49][%mdl 64] Deflection} ({Predecessor:} 14... Ne8 15. Bxg7 Nxg7 16. Re5 b6 17. Qe2 Re8 18. Re1 Kf8 19. Qe3 Nb7 20. Qh6 f6 21. Qxh7 e6 {1-0 Meier,G (2621)-Ter Sahakyan,S (2640) PNWCC Online blitz JP 12th 2020 (11)}) 15. cxb5 {[%emt 0:06:34]} (15. Nxb5 $6 Nxc4 16. Bxf6 Bxf6 $15) 15... Nxd5 {[%emt 0:00:32] Black is weak on the light squares} 16. Bxg7 {[%emt 0:00:36]} Kxg7 {[%emt 0:00:05]} 17. Rc1 $1 {[%emt 0:04:54]} Qd6 {[%emt 0:05:11]} 18. Qa4 {[%emt 0:07:56]} (18. Qd2 $16 Nb4 19. Qe3 (19. Qc3+ Qd4 $14)) 18... Qc7 {[%emt 0:07:37]} 19. Nc4 {[%emt 0:02:06] White is more active.} Nxc4 {[%emt 0:04:53]} 20. Qxc4 {[%emt 0:00:04]} e6 {[%emt 0:00:50]} 21. Qxc5 {[%emt 0:00:29]} (21. f4 {is more complex.} Rfd8 22. Qxc5 Qa5 23. Qd4+) 21... Qxc5 {[%emt 0:04:31]} 22. Rxc5 {[%emt 0:00:04]} a6 {[%emt 0:00:18]} 23. a4 $36 {[%emt 0:01:17][%cal Ba2a4,Ba4b5,Bb5b6,Bb6b7][%mdl 2080] White has good play.} axb5 {[%emt 0:00:25]} 24. axb5 {[%emt 0:00:04]} g5 {[%emt 0:05:41]} (24... Ra3 $142) 25. Rb1 {[%emt 0:02:03]} Rfb8 {[%emt 0:02:23] [#]} (25... Kf6 $142) 26. f4 $1 {[%emt 0:03:40][%mdl 512]} gxf4 {[%emt 0:00:06]} 27. Bg2 {[%emt 0:00:04]} fxg3 {[%emt 0:00:13]} 28. hxg3 {[%emt 0:00:06]} Rd8 {[%emt 0:00:41]} 29. b6 {[%emt 0:01:39] Strongly threatening b7.} Rab8 {[%emt 0:00:23]} (29... Rd7 {was necessary.} 30. Kf1 Kf6 31. Bxd5 exd5 32. Rc6+ Ke5) 30. Bxd5 $1 $18 {[%emt 0:00:21]} (30. b7 Rd7 $11) 30... exd5 {[%emt 0:00:43][%mdl 4096] Endgame KRR-KRR} 31. Rc7 $1 {[%emt 0:00:10]} (31. b7 Rd7 $14) 31... Kf6 {[%emt 0:00:44]} 32. b7 {[%emt 0:00:47] Prevents Rbc8} Re8 {[%emt 0:00:29]} 33. Rb3 {[%emt 0:01:26]} d4 {[%emt 0:01:07]} (33... Kg6 $142 34. Rb6+ f6) 34. Rf3+ {[%emt 0:02:50]} Ke5 {[%emt 0:00:14]} (34... Kg6 $142 35. Rfxf7 Rbd8 36. Rg7+ (36. Rxh7 d3 $18) 36... Kf5) 35. Rfxf7 {[%emt 0:00:22]} d3 {[%emt 0:01:07]} 36. Rfd7 {[%emt 0:00:24]} (36. Rxh7 d2 37. Rcd7 (37. Rhd7 $2 Red8 $19) 37... Red8 38. Rhe7+ Kf5 39. Rf7+ Ke5 40. Rfe7+ Kf5 41. Rf7+ Ke5 42. Rfe7+ $11) 36... Ke4 {[%emt 0:00:34]} 37. Kg2 {[%emt 0:00:25]} (37. Rxh7 d2 38. Rcd7 (38. Rhd7 Red8 $16) 38... Red8 39. Rh4+ Kf3 40. Rf4+ Ke2 41. Re4+ Kf3 42. Re3+ Kg4 $16) 37... h5 {[%emt 0:00:21]} 38. Rc4+ {[%emt 0:01:49]} Kf5 {[%emt 0:00:04]} 39. Rcd4 {[%emt 0:00:43]} (39. Rxd3 Rxb7 40. Rf4+ Kg5 41. Rd5+ Kg6 42. Rd6+ Kg7 $18) 39... Re2 {[%emt 0:00:51]} 40. Rxd3 {[%emt 0:00:17] R3d5+ is the strong threat.} Rb2 {[%emt 0:00:05]} 41. R3d5+ {[%emt 0:31:02]} Ke6 {[%emt 0:30:13]} 42. R5d6+ {[%emt 0:02:14]} Ke5 {[%emt 0:00:05]} 43. Rd3 $2 {[%emt 0:00:37]} ({Don't play} 43. Rd5+ Ke6 44. R5d6+ Ke5) ({White should play} 43. Kh3 $18) 43... h4 $2 {[%emt 0:00:49][%mdl 8192]} (43... Kf5 $1 $11) 44. gxh4 {[%emt 0:01:46]} R8xb7 {[%emt 0:00:11]} 45. Rxb7 {[%emt 0:00:50]} Rxb7 {[%emt 0:00:03] KR-KR} 46. Rf3 {[%emt 0:00:05]} Rh7 {[%emt 0:00:08]} 47. Kh3 {[%emt 0:00:14] Rf8 would be deadly.} Rh8 {[%emt 0:00:04] Prevents Rf8} 48. Rf7 {[%emt 0:02:22]} Ke6 {[%emt 0:00:08]} 49. Rf4 {[%emt 0:00:08]} Ke5 {[%emt 0:00:16]} 50. Rf3 {[%emt 0:00:04]} Ke6 {[%emt 0:00:57]} 51. Rf4 {[%emt 0:01:30]} Ke5 {[%emt 0:00:10]} 52. Kg3 {[%emt 0:00:04] White now steadily converts the win.} Rg8+ {[%emt 0:00:16]} 53. Rg4 {[%emt 0:00:49]} Rh8 {[%emt 0:00:19]} 54. Rg5+ {[%emt 0:00:38]} Kf6 {[%emt 0:00:04]} 55. Kg4 {[%emt 0:00:24]} Ra8 {[%emt 0:00:22]} 56. h5 {[%emt 0:01:08][%cal Bh4h5,Bh5h6][%mdl 32] White wants to mate with h6.} Ra4+ {[%emt 0:01:10]} (56... Ra1 $16 {was worth a try.} 57. Rg6+ Kf7) 57. f4 {[%emt 0:00:04][%cal Bf2f4,Bf4f5,Bf5f6,Bf6f7][%mdl 32] White threatens h6 and mate.} Ra1 {[%emt 0:00:21]} 58. Rg6+ {[%emt 0:00:08]} Kf7 {[%emt 0:00:04]} 59. Rd6 {[%emt 0:00:43]} Kg7 {[%emt 0:00:41]} 60. h6+ $1 {[%emt 0:02:05]} Kh7 {[%emt 0:01:28]} 61. f5 {[%emt 0:01:42]} Rg1+ {[%emt 0:00:54]} 62. Kf4 {[%emt 0:00:05]} Rf1+ {[%emt 0:00:39]} 63. Kg5 {[%emt 0:00:17]} Rg1+ {[%emt 0:00:37] [#]} 64. Kf6 $1 {[%emt 0:00:21] Threatening mate with Ke7.} Kxh6 $2 {[%emt 0:01:37]} (64... Rf1 $18 65. Rd8 Rb1) 65. Ke7+ {[%emt 0:00:17] White mates.} Kh7 {[%emt 0:00:24] [#]} 66. f6 $1 {[%emt 0:00:41]} Rf1 {[%emt 0:01:21]} 67. Rd2 {[%emt 0:01:55]} Re1+ {[%emt 0:00:28]} 68. Kf8 {[%emt 0:00:19]} Ra1 {[%emt 0:00:58]} 69. f7 {[%emt 0:00:14]} Rh1 {[%emt 0:00:49]} 70. Re2 {[%emt 0:00:14]} Ra1 {[%emt 0:00:45]} 71. Rh2+ {[%emt 0:00:04] Weighted Error Value: White=0.26 (precise) /Black=0.29 (precise)} 1-0

[Event "Lliga Catalana DH 2023"]
[Site "Catalonia"]
[Date "2023.02.11"]
[Round "4.3"]
[White "Gonzalez Garcia, Jose"]
[Black "Munoz, Miguel"]
[Result "0-1"]
[ECO "A63"]
[WhiteElo "2450"]
[BlackElo "2356"]
[Annotator "TA"]
[PlyCount "104"]
[EventDate "2023.01.24"]
[EventType "team-tourn"]
[EventCountry "ESP"]
[SourceTitle "playchess.com"]
[Source "ChessBase"]
[SourceQuality "1"]
[TimeControl "40/5400+30:1800+30"]

{[%evp 21,104,0,28,37,29,29,37,31,42,42,58,54,50,46,69,43,57,52,79,51,105,109,100,104,109,106,182,135,147,63,56,50,143,148,139,156,121,134,141,89,154,154,163,150,165,91,141,138,137,68,129,0,0,-8,-8,-45,-8,-8,0,-443,-436,-417,-395,-415,-368,-327,-319,-29972,-649,-1075,-1029,-29975,-29976,-29975,-29977,-29976,-29978,-29978,-29979,-29979,-29979,-29979,-29979,-29976,-29965]} 1. d4 Nf6 2. c4 c5 3. d5 d6 4. Nc3 g6 5. Nf3 Bg7 6. g3 O-O 7. Bg2 e6 8. O-O exd5 9. cxd5 Nbd7 10. a4 a6 11. Nd2 Ne8 12. Nc4 {A63: Modern Benoni: Fianchetto Variation: 9...Nbd7.} Ne5 13. Nxe5 Bxe5 14. Bh6 {[#] White is slightly better.} Bg7 $146 ({Predecessor:} 14... Ng7 15. Qd2 Re8 16. Bf4 Bxf4 17. Qxf4 Rb8 18. Rfb1 Bf5 19. e4 g5 20. Qd2 Bg6 {1-0 Matveeva,S (2478)-Kovalevskaya,E (2443) North Urals Cup (Women) 1st 2003 (7)}) 15. Bxg7 Kxg7 16. e4 f5 17. f4 fxe4 18. Nxe4 Bf5 19. Ng5 Qf6 20. Qb3 (20. g4 $5 {[%cal Rg4f5]} Bc8 21. Qf3 $14) 20... Rb8 (20... Kg8 $14) 21. Ne6+ $16 Bxe6 22. dxe6 Nc7 23. Rad1 (23. Bxb7 Nxe6 24. Qd5 Nd4 $15) 23... Rfd8 (23... Qxe6 $16 {was worth a try.} 24. Qc3+ Qf6) 24. Rfe1 (24. Bxb7 d5 $11) (24. Bh3 $18) 24... b5 25. Bc6 (25. e7 $6 Rd7 $11) (25. a5 $1 $16) 25... bxa4 $14 26. Qc3 Nb5 (26... Rxb2 $2 27. e7 Rh8 28. Qxf6+ (28. e8=Q Nxe8 29. Qa3 Nc7 $14) 28... Kxf6 29. Rxd6+ (29. e8=B Nb5 $16) (29. e8=Q Nxe8 30. Bxe8 Rb6 $18) 29... Kg7 30. e8=Q Nxe8 31. Bxe8 $18) (26... Qxc3 $14 27. bxc3 a3) 27. Qxf6+ $16 Kxf6 28. e7 Re8 29. Bxe8 Rxe8 {[%mdl 4096] Endgame KRR-KRN} 30. Re4 (30. Kf2 $142) 30... Rxe7 (30... Nd4 $142) 31. Rxa4 Re2 32. Rxa6 {[%cal Ob2b4]} Kf5 {[#]} 33. b4 $1 Kg4 (33... Nc3 $142 34. Rdxd6 cxb4) (33... Nd4 34. bxc5) 34. bxc5 dxc5 35. Rd7 (35. Rd5 $16) 35... c4 (35... Nd4 $1 $14) 36. Rxh7 (36. f5 $1 $16 {[%cal Rf5f6]} Kf3 37. Ra1 (37. fxg6 $2 Re1#) 37... Rg2+ 38. Kh1 gxf5 39. Rb7 (39. Rxh7 c3 $11)) 36... c3 $1 $11 37. Kf1 Kf3 {Strongly threatening ...Rd2.} 38. g4 {Rh3+ would be deadly.} (38. Rxg6 Nd4) 38... c2 {[%cal Rc2c1]} 39. Rh3+ (39. Rxg6 $2 c1=Q#) 39... Kxf4 40. Ra4+ $2 {[%mdl 8192]} (40. Ra1 $11 {and White has nothing to worry.} Nd4 41. Rd3 {[%mdl 64] Decoy}) 40... Re4 $19 41. Ra1 {[%cal Og4g5] [#]} Rb4 $1 {( -> ...Rb1+)} ({Weaker is} 41... Kxg4 42. Rg3+ Kf5 43. Rf3+ Kg5 44. Rg3+ Kh6 45. Rh3+ Kg5 46. Rg3+ Kf6 47. Rf3+ Kg5 48. Rg3+ $11) ({Not} 41... Rc4 42. Rc1 $11) 42. Kg2 Rb1 $1 ({And not} 42... Kxg4 43. Rg3+ Kf5 44. Rf1+ Rf4 45. Re1 $11) 43. Rf3+ Kxg4 44. h3+ $2 (44. Ra4+ $19 Kh5 45. Rc4) 44... Kh4 (44... Kh5 $142 45. Rf1 Nc3 46. Rh1 Rxh1 47. Kxh1 Ne2 48. Re1 c1=Q 49. Rxc1 Nxc1 50. Kg1 g5 51. Kh1 Kh4 52. Kh2 Nd3 53. Kg2 Nf4+ 54. Kg1 Kxh3 55. Kf2 g4 56. Ke3 Nh5 57. Ke2 g3 58. Kf3 g2 59. Kf2 Kh2 60. Ke2 g1=Q 61. Kd2 Qc5 62. Ke2 Kg3 63. Kd2 Kf3 64. Kd3 Nf4+ 65. Kd2 Ne2 66. Ke1 Qc1#) 45. Rf4+ Kh5 46. Rf1 {[#]} Nc3 $1 {Black mates.} 47. Rc1 Rxa1 48. Rxa1 {[#]} Na2 $1 {[%mdl 576] Deflection, Promotion} 49. Rxa2 c1=Q (49... c1=B $2 50. Kg3 $18) 50. Re2 Qc6+ 51. Kg3 Qd6+ 52. Kg2 Qd5+ {Never resign too early!   Weighted Error Value: White=0.58/Black=0.32} 0-1

[Event "Lliga Catalana DH 2023"]
[Site "Catalonia"]
[Date "2023.02.11"]
[Round "4.4"]
[White "Moskalenko, Viktor"]
[Black "Vidarte Morales, Arturo"]
[Result "1/2-1/2"]
[ECO "D31"]
[WhiteElo "2448"]
[BlackElo "2276"]
[Annotator "TA"]
[PlyCount "93"]
[EventDate "2023.01.24"]
[EventType "team-tourn"]
[EventCountry "ESP"]
[SourceTitle "playchess.com"]
[Source "ChessBase"]
[SourceQuality "1"]
[TimeControl "40/5400+30:1800+30"]

{[%evp 13,93,5,8,16,29,31,30,33,37,34,28,8,5,7,22,22,23,20,22,19,22,22,21,24,29,21,25,22,29,20,22,0,0,0,0,0,52,52,56,18,49,16,12,14,39,23,79,79,79,57,57,0,79,0,57,57,57,57,57,57,57,27,42,42,59,10,64,53,66,58,79,56,58,0,33,0,0,0,0,0,0,0]} 1. d4 {[%emt 0:05:01]} d5 {[%emt 0:00:09]} 2. c4 {[%emt 0:00:39]} e6 {[%emt 0:00:16]} 3. Nc3 {[%emt 0:00:05]} Be7 {[%emt 0:00:13]} 4. cxd5 {[%emt 0:00:39]} exd5 {[%emt 0:00:05]} 5. Bf4 {[%emt 0:00:09]} c6 {[%emt 0:00:38]} 6. e3 {[%emt 0:05:07]} Bf5 {[%emt 0:00:52]} 7. Nge2 {[%emt 0:04:57]} Nf6 {[%emt 0:05:27]} 8. Ng3 {[%emt 0:00:35] D31: Queen's Gambit Declined: Semi-Slav without ...Nf6 (+ Marshall Gambit and Noteboom) and Exchange Variation lines without ...Nf6.} Be6 {[%emt 0:00:11]} 9. Bd3 {[%emt 0:00:20]} O-O {[%emt 0:00:43]} 10. O-O {[%emt 0:01:51] White has an edge.} Nbd7 {[%emt 0:00:47]} 11. h3 {[%emt 0:08:38]} Re8 {[%emt 0:00:43] [#]} 12. Nf5 $146 {[%emt 0:00:53]} ({Predecessor:} 12. Rc1 Nf8 13. Nge2 Ng6 14. Bg3 Bd6 15. Bxd6 Qxd6 16. f3 Nh5 17. Qd2 Ng3 18. Nxg3 Qxg3 {0-1 Svidler,P (2755)-Radjabov,T (2781) EU-chT (Men) 18th 2011 (6.1)}) 12... Bxf5 {[%emt 0:01:09]} 13. Bxf5 {[%emt 0:00:03]} Nf8 {[%emt 0:00:53]} 14. Qb3 {[%emt 0:01:59]} Qb6 {[%emt 0:01:22]} 15. Qc2 {[%emt 0:02:27]} Qd8 {[%emt 0:01:58]} 16. Rab1 {[%emt 0:15:11]} Bd6 {[%emt 0:08:19]} 17. Bxd6 {[%emt 0:00:36]} Qxd6 {[%emt 0:00:12]} 18. b4 {[%emt 0:00:05]} g6 {[%emt 0:00:20]} 19. Bd3 {[%emt 0:00:06]} Ne6 {[%emt 0:00:09]} 20. Rfc1 {[%emt 0:00:50]} Rac8 {[%emt 0:04:10]} 21. a4 {[%emt 0:06:40]} a6 {[%emt 0:03:42]} 22. a5 {[%emt 0:02:09]} Re7 {[%emt 0:01:21]} 23. Na4 {[%emt 0:02:13]} Kg7 {[%emt 0:01:02]} 24. Nc5 {[%emt 0:06:49][%cal Oc5b7] [#] Threatens to win with Nxb7!} Nxc5 {[%emt 0:01:38]} (24... Rb8 $11) 25. bxc5 $14 {[%emt 0:00:10]} Qe6 {[%emt 0:00:10]} 26. Rb6 {[%emt 0:01:33]} Rcc7 {[%emt 0:01:07]} 27. Rcb1 {[%emt 0:00:12]} h5 {[%emt 0:02:30]} 28. R1b3 {[%emt 0:03:02]} Qd7 {[%emt 0:05:16]} 29. Qb2 {[%emt 0:05:11]} Kh7 {[%emt 0:00:30]} (29... h4 $11 {remains equal.}) 30. Qe2 Kg7 {[%emt 0:00:30]} 31. Qf3 {[%emt 0:01:00] White is more active.} Ne4 {[%emt 0:00:30]} 32. Qe2 {[%emt 0:01:42] Prevents Nd2.} Nf6 {[%emt 0:05:57]} 33. Qf3 {[%emt 0:01:31]} Ne4 {[%emt 0:01:39]} 34. Qf4 {[%emt 0:12:25]} Nd2 {[%emt 0:09:19]} 35. Rb2 {[%emt 0:02:34]} Ne4 {[%emt 0:00:42]} 36. R6b3 {[%emt 0:00:26]} Qe6 {[%emt 0:04:41]} 37. Bxe4 {[%emt 0:00:58]} (37. h4 {looks sharper.} Qg4 38. f3 Qxf4 39. exf4 Ng3 40. Kh2) 37... Qxe4 {[%emt 0:01:15]} 38. Qxe4 {[%emt 0:00:41]} dxe4 {[%emt 0:00:13][%mdl 4096] Endgame KRR-KRR} 39. f3 {[%emt 0:03:41]} (39. h4 $1 $14 {feels stronger.}) 39... f5 {[%emt 0:03:42]} (39... exf3 $11 40. gxf3 g5) 40. fxe4 {[%emt 0:00:06]} fxe4 {[%emt 0:00:04]} 41. Rf2 {[%emt 0:30:07]} Rf7 {[%emt 0:30:08]} 42. Rbb2 {[%emt 0:00:17]} Rf6 {[%emt 0:07:21]} 43. h4 {[%emt 0:01:25]} (43. g3 $14) 43... Rf5 {[%emt 0:01:25]} 44. Kh2 {[%emt 0:01:34]} Kf6 {[%emt 0:02:25] The position is equal.} 45. Kg3 {[%emt 0:00:23]} Ke6 {[%emt 0:02:07]} 46. Rb4 {[%emt 0:05:32]} Kd5 {[%emt 0:01:38]} 47. Rfb2 {[%emt 0:00:20] Weighted Error Value: White=0.13 (very precise) /Black=0.10 (very precise)} 1/2-1/2